Cogmind - Beta 17 @@@ ROGUE MODE // 2026.07.06 @ 10:41:17 Player: Mechanikum Result: Destroyed by G-34 Mercenary with Small Laser Performance ------------- Evolutions (1) 500 Regions Visited (3) 600 Robots Destroyed (31) 155 Value Destroyed (827) 827 Prototype IDs (0) 0 Alien Tech Used (0) 0 Bonus (0) 0 TOTAL SCORE: 2082 Bonus ------- None Cogmind --------- Core Integrity 0/400 Matter 257/300 Energy 100/100 System Corruption 0% Temperature Cool (6) Movement Walking (120) Location -9/Storage Parts ------- > --- POWER (1) -------- (None) > --- PROPULSION (3) --- Aluminum Leg Aluminum Leg > --- UTILITY (3) ------ Visual Processing Unit Hardened Light Armor Plating > --- WEAPON (2) ------- Heavy Assault Rifle > --- INVENTORY (5) ---- Wheel Improved Heat Sink Peak State ------------ > --- POWER ------------ Light Nuclear Core > --- PROPULSION ------- Aluminum Leg Wheel Armored Wheel > --- UTILITY ---------- Visual Processing Unit Improved Targeting Computer Hardened Light Armor Plating > --- WEAPON ----------- Heavy EM Pulse Gun Heavy Assault Rifle > --- INVENTORY -------- Aluminum Leg Aluminum Leg Wheel Improved Heat Sink [Rating: 17] Favorites ----------- Power Ion Engine Engine Ion Engine Power Core Light Nuclear Core Propulsion Wheel Leg Aluminum Leg Wheel Wheel Utility Visual Processing Unit Device Structural Scanner Storage Small Storage Unit Processor Visual Processing Unit Protection Hardened Light Armor Plating Weapon Spread Laser Energy Gun Spread Laser Ballistic Gun Light Assault Rifle Ballistic Cannon Light Cannon Special Weapon Plasma Cutter Build | -11 -10 -9 -9 ------- Run | Yrd Mat Mat Sto Slots Evolved 2 | . . 2 . Power . | . . . . Propulsion 1 | . . 1 . Utility 1 | . . 1 . Weapon . | . . . . Parts Attached 38 | 6 14 16 2 Power 4 | 1 2 1 . Engine 3 | 1 2 . . Core 1 | . . 1 . Reactor . | . . . . Propulsion 13 | 2 3 6 2 Treads . | . . . . Leg 5 | . . 3 2 Wheel 8 | 2 3 3 . Hover . | . . . . Flight . | . . . . Utility 7 | 1 4 2 . Device 3 | . 3 . . Storage 1 | 1 . . . Processor 2 | . 1 1 . Hackware . | . . . . Protection 1 | . . 1 . Artifact . | . . . . Weapon 14 | 2 5 7 . Energy Gun 8 | . 3 5 . Energy Cannon . | . . . . Ballistic Gun 4 | 2 1 1 . Ballistic Cannon 1 | . 1 . . Launcher . | . . . . Special Weapon 1 | . . 1 . Impact Weapon . | . . . . Slashing Weapon . | . . . . Piercing Weapon . | . . . . Special Melee Weapon . | . . . . Unidentified Prototypes . | . . . . Parts Lost 19 | . 2 15 2 Power 2 | . . 2 . Propulsion 8 | . 1 6 1 Utility 2 | . . 2 . Weapon 7 | . 1 5 1 Highest Loss Streak 6 | . 2 6 2 To Critical Strikes . | . . . . Average Backups 3 | . 4 4 2 Power . | . . . . Propulsion 2 | . 3 2 1 Utility . | . . 1 1 Weapon . | . . . . Tool/Special . | . . . . Unused Backups 1 | . . . 1 Power . | . . . . Propulsion . | . . . . Utility 1 | . . . 1 Weapon . | . . . . Tool/Special . | . . . . Average Slot Usage (%) 92 | . 98 87 72 Engine 8 | . 14 3 . Core 2 | . . 5 . Leg 4 | . . 8 20 Wheel 23 | . 27 20 8 Device 11 | . 13 9 . Processor 15 | . 12 19 11 Protection 1 | . . 1 11 Energy Gun 14 | . 20 6 9 Ballistic Gun 7 | . 5 9 11 Ballistic Cannon 2 | . 2 3 . Peak Build Rating 17 | 6 10 17 12 Average Rating 10 | 4 9 12 11 On Entrance 6 | . 6 8 10 Avg Prop Armor Cover (%) 7 | . . 7 4 Naked Turns . | . . . . Heaviest Build 17 | 13 17 16 11 Greatest Support 32 | 20 26 32 20 Greatest Overweight (x) 1 | . 1 1 . Average Overweight (x) . | . . . . Largest Inventory Capacity 8 | 8 8 5 5 Average Capacity 5 | 6 5 5 5 Most Carried 5 | 2 5 5 3 Average Carried 3 | . 4 4 2 Final Capacity 8 | 8 5 5 5 Final Carried 5 | 2 5 4 2 Class Distribution -------------------- 87% | Mutant 12% | Scavenger-Mutant Dominant Class ---------------- Mutant | -10/Materials Mutant | -9/Materials Mutant | -9/Storage Resources | -11 -10 -9 -9 ----------- Run | Yrd Mat Mat Sto Matter Collected 739 | 129 300 310 . Remotely 89 | . 89 . . Salvage Created 916 | . 419 447 50 Parts 61 | . 29 31 1 Haulers Intercepted . | . . . . Recyclers Shooed 1 | . . . 1 Parts Field Recycled . | . . . . Retrieved Matter . | . . . . Parts Self-Destructed . | . . . . Prevented . | . . . . Parts Restored . | . . . . Kills | -11 -10 -9 -9 ------- Run | Yrd Mat Mat Sto Combat Hostiles Destroyed 27 | . 15 11 1 Guns 26 | . 15 10 1 Cannons 1 | . . 1 . Classes Destroyed 5 | . 4 1 . Recycler 1 | . 1 . . Watcher 3 | . 3 . . Swarmer 9 | . 9 . . Grunt 16 | . 6 9 1 Sentry 2 | . . 2 . Best Kill Streak 5 | . 5 3 1 Combat Bots Only 5 | . 5 3 1 Max Kills in Single Turn 2 | . 2 1 1 Gunslinging . | . . . . Exploded . | . . . . Melee . | . . . . Uniques/NPCs Destroyed . | . . . . Combat | -11 -10 -9 -9 -------- Run | Yrd Mat Mat Sto Hostile Shots Fired 249 | . 66 155 28 Missed 65 | . 21 39 5 Hits 184 | . 45 116 23 Projectile 184 | . 45 116 23 Critical Strikes 2 | . . 2 . Damage Taken 2227 | . 452 1520 255 Core 546 | . 146 337 63 Absorbed by Shields . | . . . . Regen/Repaired (Parts) 84 | . . 84 . Core Remaining (%) 70 | 100 41 . . Volleys Fired 116 | . 41 64 11 Largest 2 | . 2 2 2 Hottest 130 | . 130 85 68 Shots Fired 190 | . 75 98 17 Gun 178 | . 75 86 17 Cannon 10 | . . 10 . Launcher . | . . . . Special 2 | . . 2 . Kinetic 67 | . 1 55 11 Thermal 80 | . 56 24 . Explosive . | . . . . Electromagnetic 43 | . 18 19 6 Robot Hit Streak 14 | . 6 14 5 Robot Miss Streak 9 | . 9 3 1 Penetration Max . | . . . . Secondary Targets 3 | . 1 1 1 Max Gunslinging Chain 1 | . 1 1 1 Shots Hit Robots 143 | . 55 75 13 Core Hits 85 | . 57 25 3 Critical Kills . | . . . . Critical Parts Destroyed . | . . . . Critical Strikes . | . . . . Melee Attacks . | . . . . Impact . | . . . . Slashing . | . . . . Piercing . | . . . . Sneak Attacks . | . . . . Combat Hostiles . | . . . . Follow-up Attacks . | . . . . Damage Inflicted 1790 | . 647 929 214 Guns 1550 | . 590 746 214 Cannons 178 | . . 178 . Explosions 47 | . 47 . . Melee . | . . . . Ramming 15 | . 10 5 . Kinetic 701 | . . 570 131 Thermal 711 | . 522 189 . Explosive . | . . . . Electromagnetic 363 | . 115 165 83 Impact . | . . . . Slashing . | . . . . Piercing . | . . . . Highest Corruption 2 | . 2 . . Average Corruption 1 | . 1 . . Corruption Purged . | . . . . Corruption Blocked . | . . . . Effects 2 | . 2 . . Matter Fused 1 | . 1 . . Misfires 1 | . 1 . . Overload Shots . | . . . . Overflow Damage 17 | . 17 . . Projectiles . | . . . . Explosions 17 | . 17 . . Melee . | . . . . Knockbacks 3 | . . 3 . Impact . | . . . . Kinetic 3 | . . 3 . Secondary . | . . . . Self-Inflicted Damage 7 | . 5 2 . Shots . | . . . . Rammed 2 | . 1 1 . Targets Rammed 2 | . 1 1 . Kicked . | . . . . Crushed . | . . . . Highest Temperature 375 | . 375 126 57 Average Temperature 84 | . 123 26 32 Received Heat Transfer 1053 | . 162 753 138 Effects 1 | . 1 . . Energy Bleed 1 | . 1 . . Siege Activations . | . . . . Martial Activations . | . . . . Shielding Activations . | . . . . Robots Disrupted . | . . . . Combat Hostiles . | . . . . Robots Corrupted . | . . . . Combat Hostiles . | . . . . Parts Fried . | . . . . Impact Corruptions . | . . . . Robots Melted . | . . . . Combat Hostiles . | . . . . Parts Melted 1 | . . 1 . Heat Transferred 1065 | . 640 425 . Parts Sabotaged . | . . . . Parts Stolen . | . . . . Parts Stripped . | . . . . Power Chain Reactions 1 | . 1 . . Alert | -11 -10 -9 -9 ------- Run | Yrd Mat Mat Sto Maximum Alert Level . | . . . . Low Security (%) 100 | 100 100 100 100 Level 1 . | . . . . Level 2 . | . . . . Level 3 . | . . . . Level 4 . | . . . . Level 5 . | . . . . High Security . | . . . . Max Security . | . . . . Peak Influence 170 | . 170 98 20 Initial 29 | . . 29 9 Average 60 | . 89 32 5 Influence Increases 754 | . 390 344 20 Destroy 0b10 Robot/C 540 | . 300 220 20 Destroy 0b10 Robot/NC 20 | . 20 . . Destroy Leader 116 | . 56 60 . Successful Hack 17 | . 14 3 . Disable Machine 15 | . . 15 . Destroy Structure 1 | . . 1 . Lose Combat Pursuer 45 | . . 45 . Influence Decreases 754 | . 320 391 43 Entered New Map 55 | . . 41 14 Time Decay 554 | . 300 235 19 Lost Part 145 | . 20 115 10 Squads Dispatched 4 | . 1 3 . Investigation 1 | . . 1 . Extermination . | . . . . Reinforcement 3 | . 1 2 . Assault . | . . . . Garrison . | . . . . Intercept . | . . . . Searches Triggered . | . . . . Construction Impeded . | . . . . Haulers Reinforced . | . . . . Active Scanning Responses . | . . . . Cargo Convoy Interrupts . | . . . . Stealth | -11 -10 -9 -9 --------- Run | Yrd Mat Mat Sto Distress Signals 2 | . 1 . 1 Communications Jammed . | . . . . Distress Signals . | . . . . Times Spotted 46 | . 19 22 5 Peak Tracking Total 8 | . 3 8 4 Tactical Retreats 2 | . . 2 . Traps | -11 -10 -9 -9 ------- Run | Yrd Mat Mat Sto Traps Triggered 2 | . 1 1 . Indirectly . | . . . . Trap Hack Attempts . | . . . . Triggered . | . . . . Disarmed . | . . . . Reprogrammed . | . . . . Reused . | . . . . Traps Extracted . | . . . . Installed . | . . . . Triggered . | . . . . Machines | -11 -10 -9 -9 ---------- Run | Yrd Mat Mat Sto Machines Disabled 1 | . . 1 . Max in Single Turn 1 | . . 1 . Machines Repaired . | . . . . Machines Dismantled . | . . . . Machines Sabotaged . | . . . . Overloaded Fab Kills . | . . . . Hacking | -11 -10 -9 -9 --------- Run | Yrd Mat Mat Sto Machines Accessed 5 | . 3 2 . Terminals 3 | . 2 1 . Fabricators . | . . . . Repair Stations 1 | . . 1 . Recycling Units 1 | . 1 . . Scanalyzers . | . . . . Garrison Access . | . . . . Total Hacks 14 | . 6 8 . Successful 9 | . 4 5 . Failed 5 | . 2 3 . Catastrophic . | . . . . Database Lockouts . | . . . . Manual . | . . . . Terminals 7 | . 5 2 . Fabricators . | . . . . Repair Stations 6 | . . 6 . Recycling Units 1 | . 1 . . Scanalyzers . | . . . . Garrison Access . | . . . . Terminal Hacks 4 | . 3 1 . Record 2 | . 1 1 . Dispatch Records 1 | . 1 . . Transport Status 1 | . 1 . . Fabricator Hacks . | . . . . Repair Station Hacks 4 | . . 4 . Scan Component 2 | . . 2 . Repair 2 | . . 2 . Recycling Unit Hacks 1 | . 1 . . Report Inventory 1 | . 1 . . Scanalyzer . | . . . . Garrison Access Hacks . | . . . . Unauthorized Hacks . | . . . . Terminals . | . . . . Fabricators . | . . . . Repair Stations . | . . . . Recycling Units . | . . . . Scanalyzers . | . . . . Garrison Access . | . . . . Data Cores Recovered . | . . . . Used . | . . . . Hacking Detections 4 | . 2 2 . Full Trace Events 1 | . . 1 . Feedback Events . | . . . . Feedback Blocked . | . . . . Robot Schematics Acquired . | . . . . Robots Built . | . . . . Authchips . | . . . . Time . | . . . . Total Robot Build Rating . | . . . . Part Schematics Acquired . | . . . . Parts Built . | . . . . Authchips . | . . . . Time . | . . . . Total Part Build Rating . | . . . . Part Studies Acquired . | . . . . Parts Repaired 2 | . . 2 . Time 64 | . . 64 . Parts Recycled . | . . . . Recycled Matter . | . . . . Retrieved Matter . | . . . . Retrieved Components . | . . . . Parts Scanalyzed . | . . . . Part Schematics Acquired . | . . . . Parts Damaged . | . . . . Bothacking | -11 -10 -9 -9 ------------ Run | Yrd Mat Mat Sto Used RIF Installer . | . . . . Robots Hacked . | . . . . Non-combat . | . . . . Combat . | . . . . Robot Hacks Applied . | . . . . Relay Couplers Released . | . . . . Fabnet Peak Effective % . | . . . . Robots Rewired . | . . . . Allies Hacked . | . . . . Hacks Repelled . | . . . . Allies | -11 -10 -9 -9 -------- Run | Yrd Mat Mat Sto Total Allies . | . . . . Largest Group . | . . . . Highest-Rated Group . | . . . . Highest-Rated Ally . | . . . . Total Orders . | . . . . Ally Attacks . | . . . . Total Damage . | . . . . Kills . | . . . . Allies Corrupted . | . . . . Allies Melted . | . . . . Intel | -11 -10 -9 -9 ------- Run | Yrd Mat Mat Sto Active Infowar (turns) 1434 | . 728 626 80 Optics 1434 | . 728 626 80 Structural 960 | . 406 554 . Robot Analysis Total . | . . . . Derelict Logs Recovered . | . . . . Drone Launches . | . . . . Drone Recoveries . | . . . . Exploration | -11 -10 -9 -9 ------------- Run | Yrd Mat Mat Sto Turns Passed 1576 | 48 822 626 80 Spaces Moved 1325 | 47 808 428 42 Core 4 | 2 . 2 . Treads . | . . . . Legs 76 | . . 34 42 Wheels 1245 | 45 808 392 . Hover . | . . . . Flight . | . . . . Fastest Speed 50 | 50 80 50 120 Average Speed 85 | 78 83 87 120 Slowest Speed 120 | 80 95 120 120 Overloaded Moves . | . . . . Propulsion Burnouts . | . . . . Robots Hopped . | . . . . Potential Cave-ins . | . . . . Cave-ins Triggered . | . . . . Exploration Rate (%) 30 | 3 79 31 9 Regions Visited 3 Branch Regions 1 Pre-discovered Areas . | . . . . Known Exits Taken . | . . . . Unknown Exits Taken 3 | 1 1 1 . Scrap Searched . | . . . . Spaces Dug . | . . . . Terrain Destroyed . | . . . . Melee . | . . . . Projectile . | . . . . AOE . | . . . . Terrain Rammed . | . . . . Walls Destroyed . | . . . . Machines Disabled . | . . . . Actions | -11 -10 -9 -9 --------- Run | Yrd Mat Mat Sto Total 1557 | 54 875 573 55 Wait 60 | . 6 54 . Move 1322 | 46 807 427 42 Hop . | . . . . Pick Up 5 | 2 2 1 . Fast Attach 22 | 6 2 14 . Attach 5 | . 1 2 2 Detach . | . . . . Swap 21 | . 13 8 . Drop 4 | . 2 2 . Fire 116 | . 41 64 11 Melee . | . . . . Ram 2 | . 1 1 . Kick . | . . . . Crush . | . . . . Escape Stasis . | . . . . Rewire . | . . . . Trap . | . . . . Miscellaneous . | . . . . Route ------- -11/Scrapyard -10/Materials (discovered 3 exits: *Mat x2 / [*Min]) -9/Materials (discovered 2 exits: [*Mat] / [*Sto]) -9/Storage History --------- Turn | Location | Event 17 | -11/Scrapyard | Discovered new exit (range 16) 49 | -11/Scrapyard | Entered Materials 97 | -10/Materials | Discovered new exit (range 9) 316 | -10/Materials | Build established: Mutant 485 | -10/Materials | Discovered new exit (range 18) 605 | -10/Materials | Core integrity fell below 50% 612 | -10/Materials | Discovered new exit (range 17) 871 | -10/Materials | Entered another Materials area 871 | -9/Materials | Evolved 2 slots: Propulsion x1, Utility x1 1094 | -9/Materials | Lost 6 parts (1p3n2w) 1191 | -9/Materials | Lost 3 parts (1n2w) 1226 | -9/Materials | Core integrity fell below 50% 1279 | -9/Materials | Repaired Lgt. Nuclear Core 1309 | -9/Materials | Repaired Wheel 1349 | -9/Materials | Discovered new exit (range 4) 1479 | -9/Materials | Core integrity fell below 20% 1496 | -9/Materials | Discovered new exit (range 14) 1497 | -9/Materials | Entered Storage 1507 | -9/Storage | Lost 5 parts (1p2n2u) 1577 | -9/Storage | Destroyed by G-34 Mercenary with Small Laser Last Messages --------------- K-01 Serf cleans the Repair Station. Imp. Targeting Computer destroyed. Critical hit (Burn: +37). R-06 Scavenger collects Lgt. Armor Plating. K-01 Serf collects debris. Wheel destroyed. K-01 Serf collects debris. Acquired 6 matter. K-01 Serf collects debris. Aluminum Leg destroyed. Lgt. Nuclear Core destroyed. EXIT=FOUND LOCATION=UNKNOWN GOAL=ESCAPE W-16 Scout sends out distress signal. Arm. Wheel destroyed. G-34 Mercenary destroyed. Switching to secondary target: G-34 Mercenary. Hvy. EM Pulse Gun destroyed. R-06 Scavenger collects Ion Engine. Map ----- +----------------------------------------------------+ | | | | | | | | | | | | | | | ???????????????????????????????????????????? | | ???????????????????????????????????????????? | | ???????????????????????????????????????????? | | ???????????????????????????????????????????? | | ???????????????????????????????????????????? | | ???????????????????????????????????????????? | | ???????????????????????????????????????????? | | ???????????????????????????????????????????? | | ?????????????????????????###########???????? | | ?????????????????????????# #???????? | | ?????????????????????????# """" #####???? | | ?????????????????????????# "??" # #???? | | ?????????????????????????# "??" # #???? | | ?????????????????????????# "??" # #???? | | ?????????????????????????# "??" # #???? | | ?????????????????????????# """" # #???? | | ?????????????????????????# # #???? | | ????????????????#+##+######+##+##### #???? | | ???????????????# a g @ #???? | | ?????????? + rY g #???? | | ??????????]] # a #???? | | ???????????????# #############+##### #???? | | ???????????????????????????????????# #???? | | ???????????????????????????????????# #???? | | ???????????????????????????????????# #???? | | ???????????????????????????????????# #???? | | ???????????????????????????????????# #???? | | ???????????????????????????????????# #???? | | ???????????????????????????????????# #???? | | ???????????????????????????????????+ #???? | | ???????????????????????????????????# #???? | | ???????????????????????????????????# #???? | | ???????????????????????????????????# #???? | | ???????????????????????????????????? #???? | | ???????????????????????????????????? #???? | | ???????????????????????????????????? ????? | | ???????????????????????????????????????????? | | ???????????????????????????????????????????? | | ???????????????????????????????????????????? | | ???????????????????????????????????????????? | | ???????????????????????????????????????????? | | ???????????????????????????????????????????? | | ???????????????????????????????????????????? | +----------------------------------------------------+ Best States ------------- Heat Dissipation 28 Energy Generation 14 Energy Capacity 250 Matter Stores 300 Matter Capacity 300 Sight Range 18 Terrain Scan Density 10 Armor Coverage 150 Evasion (%) 55 Targeting Accuracy 6 Item Schematics ----------------- None Robot Schematics ------------------ None Fabricated ------------ Nothing Repaired ---------- Lgt. Nuclear Core | 6% | -9/Materials Wheel | 7% | -9/Materials Studied --------- None Alien Tech Used ----------------- None Achievements -------------- None Challenges ------------ None Game ------ Seed PulsarCobblerWand Manual? 0 Play Time 00:20:21 Cumulative 3.6 hours Start 2026.07.06 @ 10:20:45 End 2026.07.06 @ 10:41:17 Sessions 1 Manual Loads 0 Difficulty Rogue Special Mode None Game No. 6 Rogue 6 Adventurer 0 Explorer 0 Win Type - Total 0 Types 0/0/0/0/0/0/0/0/0/0 Lore% 10 Gallery% 8 Achievement% 10 Wizard Run 0 Options --------- Layout 1 ASCII 0 Keyboard 0 Movement Arrows Keybinds 0 Fullscreen 2 Font 36/X11 Map View 50x40 Zoom Use 0% Tactical HUD 0 Map Filters NONE Filters NONE Steam 1 RUN: 1fc14b5a-3984-4172-81bf-29d9a3da9737